Cogmind - Beta 16 @@@ ROGUE MODE // 2026.01.05 @ 16:41:10 Player: chebyrekser Result: Destroyed by 8Y-EAY(R) with Subdweller Machine Gun Performance ------------- Evolutions (0) 0 Regions Visited (2) 400 Robots Destroyed (44) 220 Value Destroyed (870) 870 Prototype IDs (0) 0 Alien Tech Used (0) 0 Bonus (0) 0 TOTAL SCORE: 1490 Bonus ------- None Cogmind --------- Core Integrity 0/250 Matter 300/300 Energy 247/250 System Corruption 0% Temperature Cool (0) Movement Treading (320) Ox2 Location -10/Subcaves Parts ------- > --- POWER (1) -------- Ion Engine > --- PROPULSION (2) --- Light Treads Light Treads > --- UTILITY (2) ------ Improved Heat Sink Huge Storage Unit > --- WEAPON (2) ------- Beam Cannon > --- INVENTORY (25) --- Ion Engine Light Ion Engine Light Ion Engine Subdweller Power Source Subdweller Power Source Light Treads Light Treads Light Treads Light Treads Aluminum Leg Wheel Wheel Subdweller Monowheel Subdweller Monowheel Large Storage Unit Medium Matter Pod (100) Subdweller Optics Seismic Detector Seismic Detector Hacking Suite Hacking Suite Subdweller Beam Cannon Assault Rifle Assault Rifle Maul Peak State ------------ > --- POWER ------------ Ion Engine > --- PROPULSION ------- Light Treads Light Treads > --- UTILITY ---------- Improved Heat Sink Huge Storage Unit > --- WEAPON ----------- Subdweller Laser Beam Cannon > --- INVENTORY -------- Ion Engine Light Ion Engine Light Ion Engine Subdweller Power Source Light Treads Light Treads Light Treads Light Treads Light Treads Light Treads Aluminum Leg Wheel Wheel Large Storage Unit Medium Matter Pod Subdweller Optics Seismic Detector Seismic Detector Hacking Suite Hacking Suite Assault Rifle Assault Rifle Assault Rifle Assault Rifle Maul [Rating: 13] Favorites ----------- Power Ion Engine Engine Ion Engine Propulsion Light Treads Treads Light Treads Wheel Wheel Utility Huge Storage Unit Device Seismic Detector Storage Huge Storage Unit Protection Light Armor Plating Weapon Assault Rifle Energy Gun EM Pulse Gun Energy Cannon Beam Cannon Ballistic Gun Assault Rifle Impact Weapon Maul Build | -11 -10 -10 ------- Run | Yrd Mat Sub Slots Evolved . | . . . Power . | . . . Propulsion . | . . . Utility . | . . . Weapon . | . . . Parts Attached 24 | 6 12 6 Power 4 | 1 3 . Engine 4 | 1 3 . Core . | . . . Reactor . | . . . Propulsion 6 | 2 2 2 Treads 5 | 2 1 2 Leg . | . . . Wheel 1 | . 1 . Hover . | . . . Flight . | . . . Utility 7 | 2 4 1 Device 4 | 1 2 1 Storage 2 | 1 1 . Processor . | . . . Hackware . | . . . Protection 1 | . 1 . Artifact . | . . . Weapon 7 | 1 3 3 Energy Gun 3 | . 2 1 Energy Cannon 1 | . 1 . Ballistic Gun 2 | 1 . 1 Ballistic Cannon . | . . . Launcher . | . . . Special Weapon . | . . . Impact Weapon 1 | . . 1 Slashing Weapon . | . . . Piercing Weapon . | . . . Special Melee Weapon . | . . . Unidentified Prototypes . | . . . Parts Lost 8 | . 2 6 Power 1 | . 1 . Propulsion 2 | . . 2 Utility 1 | . . 1 Weapon 4 | . 1 3 Highest Loss Streak 2 | . 1 2 To Critical Strikes . | . . . Average Backups 14 | 4 12 24 Power 2 | . 1 4 Propulsion 3 | 2 2 9 Utility 5 | . 4 7 Weapon 2 | 1 2 4 Tool/Special . | . . . Unused Backups 25 | 1 5 19 Power 4 | . 1 3 Propulsion 11 | 1 2 8 Utility 6 | . 1 5 Weapon 4 | . 1 3 Tool/Special . | . . . Average Slot Usage (%) 98 | . 98 99 Engine 13 | . 13 14 Treads 22 | . 21 27 Wheel 5 | . 6 . Device 10 | . 9 13 Storage 14 | . 14 14 Protection 3 | . 4 . Energy Gun 2 | . 2 . Energy Cannon 10 | . 10 13 Ballistic Gun 13 | . 14 13 Peak Build Rating 13 | 6 10 13 Average Rating 8 | 4 8 11 On Entrance 5 | . 6 10 Avg Prop Armor Cover (%) 10 | . 10 12 Naked Turns . | . . . Heaviest Build 93 | 11 93 91 Greatest Support 40 | 40 40 40 Greatest Overweight (x) 9 | 1 9 9 Average Overweight (x) 4 | . 4 2 Largest Inventory Capacity 25 | 8 25 25 Average Capacity 18 | 7 17 25 Most Carried 25 | 8 24 25 Average Carried 14 | 4 12 24 Final Capacity 25 | 8 25 25 Final Carried 25 | 8 24 25 Class Distribution -------------------- 100% | Mutant Dominant Class ---------------- Mutant | -10/Materials Mutant | -10/Subcaves Resources | -11 -10 -10 ----------- Run | Yrd Mat Sub Matter Collected 1070 | 285 610 175 Remotely . | . . . Salvage Created 1415 | 139 949 327 Parts 94 | 9 62 23 Haulers Intercepted 2 | . 2 . Recyclers Shooed 1 | . 1 . Parts Field Recycled . | . . . Retrieved Matter . | . . . Parts Self-Destructed 15 | . . 15 Prevented . | . . . Parts Restored . | . . . Kills | -11 -10 -10 ------- Run | Yrd Mat Sub Combat Hostiles Destroyed 28 | . 18 10 Guns 21 | . 15 6 Cannons 5 | . 3 2 Classes Destroyed 9 | 2 6 1 Worker 2 | . 2 . Tunneler 3 | 3 . . Hauler 2 | . 2 . Recycler 3 | 1 2 . Operator 3 | . 3 . Watcher 3 | . 3 . Swarmer 13 | . 9 4 Grunt 9 | . 9 . Subdweller 6 | . . 6 Best Kill Streak 4 | 2 4 4 Combat Bots Only 4 | . 3 4 Max Kills in Single Turn 1 | 1 1 1 Gunslinging . | . . . Exploded . | . . . Melee . | . . . Uniques/NPCs Destroyed . | . . . Combat | -11 -10 -10 -------- Run | Yrd Mat Sub Hostile Shots Fired 165 | . 71 94 Missed 46 | . 17 29 Hits 119 | . 54 65 Projectile 119 | . 54 65 Critical Strikes 1 | . 1 . Damage Taken 1415 | . 465 950 Core 255 | . 47 208 Absorbed by Shields . | . . . Regen/Repaired (Parts) 88 | . 88 . Core Remaining (%) 100 | 100 . . Volleys Fired 131 | 19 74 38 Largest 2 | 1 2 2 Hottest 120 | 20 80 120 Shots Fired 233 | 19 141 73 Gun 160 | 19 106 35 Cannon 73 | . 35 38 Launcher . | . . . Special . | . . . Kinetic 124 | 19 74 31 Thermal 77 | . 35 42 Explosive . | . . . Electromagnetic 32 | . 32 . Robot Hit Streak 18 | 9 12 18 Robot Miss Streak 5 | 1 4 5 Penetration Max . | . . . Secondary Targets . | . . . Shots Hit Robots 144 | 17 78 49 Core Hits 59 | 5 39 15 Critical Kills 2 | . . 2 Critical Parts Destroyed 1 | 1 . . Critical Strikes 4 | 1 1 2 Meltdown 2 | . . 2 Destroy 1 | 1 . . Corrupt 1 | . 1 . Melee Attacks 1 | . . 1 Impact 1 | . . 1 Slashing . | . . . Piercing . | . . . Sneak Attacks . | . . . Combat Hostiles . | . . . Follow-up Attacks . | . . . Damage Inflicted 2147 | 206 1188 753 Guns 1295 | 206 772 317 Cannons 801 | . 365 436 Explosions 50 | . 50 . Melee . | . . . Ramming 1 | . 1 . Kinetic 941 | 206 477 258 Thermal 910 | . 415 495 Explosive . | . . . Electromagnetic 295 | . 295 . Impact . | . . . Slashing . | . . . Piercing . | . . . Highest Corruption . | . . . Average Corruption . | . . . Corruption Purged . | . . . Corruption Blocked . | . . . Overload Shots . | . . . Overflow Damage 11 | . 11 . Projectiles 11 | . 11 . Explosions . | . . . Melee . | . . . Knockbacks . | . . . Impact . | . . . Kinetic . | . . . Secondary . | . . . Self-Inflicted Damage . | . . . Shots . | . . . Rammed 1 | . 1 . Targets Rammed 1 | . 1 . Kicked . | . . . Crushed . | . . . Highest Temperature 108 | . 108 . Average Temperature 34 | . 34 . Received Heat Transfer 204 | . 102 102 Siege Activations . | . . . Martial Activations . | . . . Shielding Activations . | . . . Robots Disrupted 1 | . 1 . Combat Hostiles 1 | . 1 . Robots Corrupted . | . . . Combat Hostiles . | . . . Parts Fried . | . . . Impact Corruptions . | . . . Robots Melted 2 | . . 2 Combat Hostiles 2 | . . 2 Parts Melted 8 | . 3 5 Heat Transferred 1827 | . 827 1000 Parts Sabotaged . | . . . Parts Stolen . | . . . Parts Stripped . | . . . Power Chain Reactions 1 | . 1 . Alert | -11 -10 -10 ------- Run | Yrd Mat Sub Maximum Alert Level . | . . . Low Security (%) 100 | 100 100 . Level 1 . | . . . Level 2 . | . . . Level 3 . | . . . Level 4 . | . . . Level 5 . | . . . High Security . | . . . Max Security . | . . . Peak Influence 159 | 10 159 . Initial . | . . . Average 45 | . 49 . Influence Increases 792 | 20 662 110 Destroy 0b10 Robot/C 440 | . 360 80 Destroy 0b10 Robot/NC 80 | 20 60 . Destroy Leader 90 | . 90 . Successful Hack 11 | . 11 . Select Force Hacks 30 | . 30 . Disable Machine 60 | . 60 . Destroy Structure 6 | . 6 . Lose Combat Pursuer 75 | . 45 30 Influence Decreases 724 | 20 613 91 Entered New Map 25 | . . 25 Time Decay 579 | 20 513 46 Lost Part 30 | . 10 20 Purge Threat 90 | . 90 . Squads Dispatched 4 | . 4 . Investigation 1 | . 1 . Extermination . | . . . Reinforcement 3 | . 3 . Assault . | . . . Garrison . | . . . Intercept . | . . . Searches Triggered . | . . . Construction Impeded . | . . . Haulers Reinforced . | . . . Active Scanning Responses . | . . . Cargo Convoy Interrupts . | . . . Stealth | -11 -10 -10 --------- Run | Yrd Mat Sub Distress Signals 3 | . 3 . Communications Jammed . | . . . Distress Signals . | . . . Times Spotted 42 | . 29 13 Peak Tracking Total 4 | . 4 4 Tactical Retreats 4 | . 3 1 Traps | -11 -10 -10 ------- Run | Yrd Mat Sub Traps Triggered 1 | . 1 . Indirectly . | . . . Trap Hack Attempts . | . . . Triggered . | . . . Disarmed . | . . . Reprogrammed . | . . . Reused . | . . . Traps Extracted . | . . . Installed . | . . . Triggered . | . . . Machines | -11 -10 -10 ---------- Run | Yrd Mat Sub Machines Disabled 5 | . 5 . Max in Single Turn 1 | . 1 . Machines Repaired . | . . . Machines Dismantled . | . . . Machines Sabotaged . | . . . Overloaded Fab Kills . | . . . Hacking | -11 -10 -10 --------- Run | Yrd Mat Sub Machines Accessed 9 | . 9 . Terminals 6 | . 6 . Fabricators . | . . . Repair Stations 1 | . 1 . Recycling Units 2 | . 2 . Scanalyzers . | . . . Garrison Access . | . . . Total Hacks 26 | . 26 . Successful 12 | . 12 . Failed 13 | . 13 . Catastrophic 1 | . 1 . Database Lockouts 1 | . 1 . Manual 12 | . 12 . Terminals 15 | . 15 . Fabricators . | . . . Repair Stations 3 | . 3 . Recycling Units 8 | . 8 . Scanalyzers . | . . . Garrison Access . | . . . Terminal Hacks 5 | . 5 . Robot Analysis 1 | . 1 . Alert Level 1 | . 1 . Unreport Threat 1 | . 1 . Locate Traps 1 | . 1 . Hauler Manifests 1 | . 1 . Fabricator Hacks . | . . . Repair Station Hacks 2 | . 2 . Scan Component 1 | . 1 . Repair 1 | . 1 . Recycling Unit Hacks 1 | . 1 . Retrieve Components 1 | . 1 . Scanalyzer . | . . . Garrison Access Hacks . | . . . Unauthorized Hacks 4 | . 4 . Terminals 3 | . 3 . Botnet 2 | . 2 . Operators 1 | . 1 . Fabricators . | . . . Repair Stations . | . . . Recycling Units 1 | . 1 . Tunnel 1 | . 1 . Scanalyzers . | . . . Garrison Access . | . . . Data Cores Recovered . | . . . Used . | . . . Hacking Detections 6 | . 6 . Full Trace Events . | . . . Feedback Events . | . . . Feedback Blocked . | . . . Robot Schematics Acquired . | . . . Robots Built . | . . . Authchips . | . . . Time . | . . . Total Robot Build Rating . | . . . Part Schematics Acquired . | . . . Parts Built . | . . . Authchips . | . . . Time . | . . . Total Part Build Rating . | . . . Part Studies Acquired . | . . . Parts Repaired 1 | . 1 . Time 26 | . 26 . Parts Recycled . | . . . Recycled Matter . | . . . Retrieved Matter . | . . . Retrieved Components 10 | . 10 . Parts Scanalyzed . | . . . Part Schematics Acquired . | . . . Parts Damaged . | . . . Bothacking | -11 -10 -10 ------------ Run | Yrd Mat Sub Used RIF Installer . | . . . Robots Hacked . | . . . Non-combat . | . . . Combat . | . . . Robot Hacks Applied . | . . . Relay Couplers Released . | . . . Fabnet Peak Effective % . | . . . Robots Rewired . | . . . Allies Hacked . | . . . Hacks Repelled . | . . . Allies | -11 -10 -10 -------- Run | Yrd Mat Sub Total Allies . | . . . Largest Group . | . . . Highest-Rated Group . | . . . Highest-Rated Ally . | . . . Total Orders . | . . . Ally Attacks . | . . . Total Damage . | . . . Kills . | . . . Allies Corrupted . | . . . Allies Melted . | . . . Intel | -11 -10 -10 ------- Run | Yrd Mat Sub Active Infowar (turns) 1897 | 64 1599 234 Seismic 1897 | 64 1599 234 Robot Analysis Total 1 | . 1 . Derelict Logs Recovered . | . . . Drone Launches . | . . . Drone Recoveries . | . . . Exploration | -11 -10 -10 ------------- Run | Yrd Mat Sub Turns Passed 3077 | 171 2360 546 Spaces Moved 1187 | 77 984 126 Core 11 | 11 . . Treads 667 | 66 478 123 Legs . | . . . Wheels 509 | . 506 3 Hover . | . . . Flight . | . . . Fastest Speed 50 | 50 160 215 Average Speed 203 | 150 193 317 Slowest Speed 320 | 160 320 320 Overloaded Moves . | . . . Propulsion Burnouts . | . . . Robots Hopped . | . . . Potential Cave-ins . | . . . Cave-ins Triggered . | . . . Exploration Rate (%) 38 | 6 100 10 Regions Visited 2 Branch Regions 1 Pre-discovered Areas 1 | . 1 . Known Exits Taken . | . . . Unknown Exits Taken 2 | 1 1 . Scrap Searched . | . . . Spaces Dug . | . . . Terrain Destroyed 3 | . 3 . Melee . | . . . Projectile . | . . . AOE 3 | . 3 . Terrain Rammed . | . . . Walls Destroyed . | . . . Machines Disabled . | . . . Actions | -11 -10 -10 --------- Run | Yrd Mat Sub Total 1604 | 111 1298 195 Wait 186 | . 175 11 Move 1185 | 76 983 126 Hop . | . . . Pick Up 40 | 9 24 7 Fast Attach 12 | 6 6 . Attach 9 | . 4 5 Detach 1 | . 1 . Swap 23 | . 17 6 Drop 15 | 1 13 1 Fire 131 | 19 74 38 Melee 1 | . . 1 Ram . | . . . Kick . | . . . Crush 1 | . 1 . Escape Stasis . | . . . Rewire . | . . . Trap . | . . . Miscellaneous . | . . . Route ------- -11/Scrapyard -10/Materials (discovered 5 exits: [*Mat x3] / [*Min] / [*Sub]) -10/Subcaves History --------- Turn | Location | Event 62 | -11/Scrapyard | Discovered new exit (range 16) 172 | -11/Scrapyard | Entered Materials 270 | -10/Materials | Discovered new exit (range 14) 300 | -10/Materials | Build established: Mutant 846 | -10/Materials | Discovered new exit (range 15) 908 | -10/Materials | Repaired Lgt. Treads 1584 | -10/Materials | Discovered new exit (range 4) 1873 | -10/Materials | Central database locked down 1959 | -10/Materials | Discovered new exit (range 15) 2517 | -10/Materials | Discovered new exit (range 7) 2532 | -10/Materials | Entered Subcaves 2539 | -10/Subcaves | Ambushed by Subdwellers from Twisted Machinery 2935 | -10/Subcaves | Core integrity fell below 50% 3021 | -10/Subcaves | Core integrity fell below 20% 3078 | -10/Subcaves | Destroyed by 8Y-EAY(R) with Subdweller Machine Gun Last Messages --------------- 02979_ Acquired Sub. Monowheel. 03011_ S-10 Pest destroyed. 03017_ Lgt. Assault Rifle fries itself beyond repair. 03023_ S-10 Pest destroyed. 03024_ Flight Unit fries itself beyond repair. 03026_ S-10 Pest suffers critical hit (Meltdown). 03028_ Lgt. Ion Engine fries itself beyond repair. 03029_ S-10 Pest destroyed. 03031_ Flight Unit fries itself beyond repair. 03035_ Lgt. Assault Rifle fries itself beyond repair. 03040_ Flight Unit fries itself beyond repair. 03048_ Acquired 27 matter. 03069_ 8Y-EAY(R): "MADSUB!" 03074_ Assault Rifle destroyed. Map ----- +----------------------------------------------------+ | ?????????????????????????????????????????????????? | | ?????????????????????????????????????????????????? | | ?????????????????????????????????????????????????? | | ?????????????????????????????????????????????????? | | ?????????????????????????????????????????????????? | | ?????????????????????????????????????????????????? | | ?????????????????????????????????????????????????? | | ?????????????????????????????????????????????????? | | ?????????????????????????????????????????????????? | | ?????????????????????????????????????????????????? | | ?????????????????????????????????????????????????? | | ?????????????????????????????????????????????????? | | ????????????????????????# ???????????????????????? | | ?????????????????????????# ?????????##???????????? | | ?????????????????????????? #######? ##??????????? | | ???????????????????????????? "## #??????????? | | ????????????????????????? ??? !] " #??##??????? | | ?????????????????#??????? ????#%! ## ##?????? | | ????????????????## ???## ?????#![ %% ##????? | | ????????????????# " ?## ??????#% % #????? | | ????????????????# " "## " ?????## % " | | ????????????????# " " """?##### ### | | ????????????????#" ""#?# #????? " | | ????????????????# "### #????????? | | ?????????????????# "R# # ## ##????????????? | | ??????????????????# @ ####??????????? | | ??????????????????#### "" " !%! ## #??????? | | ?????????????????????#"""##"# #???????? | | ?????????????????????#"" #### #???????? | | ????????????????#"#??##"####" #### #?????? | | ??????????????##"""##?#### #????# ????? | | ??????????????#"""""#??## " #?????? ????? | | ??????????????# """"#### "" #???????? ?????? | | ??????????????# """" " """ ##??????????????? | | ??????????????# " " #???????????????? | | ??????????????# " " " #???????????????? | | ??????????????# #######"# #??????????????? | | ??????????????### #?????##"# #????????????? | | ????????????????## #???????#? #????????????? | | ????????????????## #????????? #???????????? | | ???????????????## ##????????? ??????????? | | ???????????????# #?????????? ?????????? | | ???????????????# #?????????? ?????????? | | ???????????????# ##????????? ## #??????????? | | ???????????????## #????????? #?####??????????? | | ??????????????## ##????????????????????????????? | | ??????????????#!& ##?????????????????????????????? | | ??????????????#% ##??????????????????????????????? | | ??????????????## #??????????????????????????????? | | ???????????????# ##??????????????????????????????? | +----------------------------------------------------+ Best States ------------- Heat Dissipation 39 Energy Generation 10 Energy Capacity 250 Matter Stores 300 Matter Capacity 300 Sight Range 16 Terrain Scan Density 10 Armor Coverage 150 Evasion (%) 40 Recoil Reduction 2 Item Schematics ----------------- None Robot Schematics ------------------ None Fabricated ------------ Nothing Repaired ---------- Lgt. Treads | 37% | -10/Materials Studied --------- None Alien Tech Used ----------------- None Achievements -------------- None Challenges ------------ None Game ------ Seed ScrapChargeRifle Manual? 0 Play Time 00:18:45 Cumulative 311.4 hours Start 2026.01.04 @ 22:12:40 End 2026.01.05 @ 16:41:10 Sessions 2 Manual Loads 0 Difficulty Rogue Special Mode None Game No. 86 Rogue 80 Adventurer 0 Explorer 6 Win Type - Total 18 Types 8/1/3/1/1/0/2/1/0/1 Lore% 87 Gallery% 77 Achievement% 68 Wizard Run 0 Options --------- Layout 1 ASCII 0 Keyboard 0 Movement Mouse Keybinds 0 Fullscreen 2 Font 24/Smallcaps Map View 50x35 Zoom Use 0% Tactical HUD 1 Map Filters NONE Filters NONE Steam 1 RUN: df2734e3-1c6c-437d-87b1-f67d5e4e7acd